fUST/lending_fUST_20241228
["ID","MTS","AMOUNT","RATE_DAILY","PERIOD"]
[346843377,1735320548245,-500.0,0.00013567,2]
[346843378,1735320548269,-500.0,0.00013567,2]
[346843379,1735320548291,-379.69864972,0.00013567,2]
[346843380,1735320548315,-500.0,0.00013567,2]
[346843381,1735320548338,-500.0,0.00013567,2]
[346843382,1735320548361,-500.0,0.00013567,2]
[346843383,1735320548383,-500.0,0.00013567,2]
[346843384,1735320548406,-500.0,0.00013567,2]
[346843385,1735320548429,-500.0,0.00013567,2]
[346843386,1735320548452,-567.02496408,0.00013567,2]
[346843387,1735320548473,-500.0,0.00013567,2]
[346843388,1735320548496,-500.0,0.00013567,2]
[346843389,1735320548521,-500.0,0.00013567,2]
[346843390,1735320548544,-500.0,0.00013567,2]
[346843391,1735320548568,-75.04477108,0.00013567,2]
[346843392,1735320560096,-500.0,0.00013328,2]
[346843393,1735320560119,-500.0,0.00013463,2]
[346843394,1735320560140,-424.95522892,0.00013567,2]
[346843395,1735320560165,-500.0,0.00013567,2]
[346843396,1735320560187,-272.7713326,0.00013567,2]
[346843443,1735320632595,-482.91177722,0.00012266,2]
[346843450,1735320632656,-17.08822278,0.00012266,2]
[346843452,1735320632665,-218.7545,0.00012266,2]
[346843454,1735320632676,-166.74782622,0.00013063,2]
[346843456,1735320632686,-175.00025972,0.00013095,2]
[346843458,1735320632695,-175.00025969,0.00013148,2]
[346843460,1735320632705,-500.0,0.00013195,2]
[346843462,1735320632715,-175.00025969,0.00013201,2]
[346843464,1735320632724,-175.00025969,0.00013255,2]
[346843466,1735320632733,-175.00025969,0.00013308,2]
[346843468,1735320632742,-175.00025969,0.00013361,2]
[346843470,1735320632751,-500.0,0.00013461,2]
[346843472,1735320632761,-500.0,0.00013461,2]
[346843474,1735320632770,-500.0,0.00013461,2]
[346843476,1735320632780,-500.0,0.00013461,2]
[346843478,1735320632789,-500.0,0.00013461,2]
[346843480,1735320632799,-500.0,0.00013461,2]
[346843482,1735320632808,-500.0,0.00013461,2]
[346843484,1735320632818,-110.48160642,0.00013461,2]
[346843487,1735320632836,-389.51839358,0.00013461,2]
[346843489,1735320632846,-79.39660642,0.00013461,2]
[346843492,1735320632857,-420.60339358,0.00013461,2]
[346843494,1735320632866,-500.0,0.00013461,2]
[346843496,1735320632875,-500.0,0.00013463,2]
[346843498,1735320632885,-150.0,0.000135,2]
[346843499,1735320632896,-500.0,0.00013568,2]
[346843501,1735320632906,-500.0,0.00013568,2]
[346843503,1735320632915,-500.0,0.00013568,2]
[346843506,1735320632925,-500.0,0.00013568,2]
[346843507,1735320632935,-502.77443756,0.00013568,2]
[346843509,1735320632944,-500.0,0.00013568,2]
[346843512,1735320632954,-500.0,0.00013568,2]
[346843513,1735320632964,-500.0,0.00013568,2]
[346843516,1735320632974,-500.0,0.00013568,2]
[346843517,1735320632983,-500.0,0.00013568,2]
[346843520,1735320632993,-500.0,0.00013568,2]
[346843521,1735320633002,-500.0,0.00013568,2]
[346843524,1735320633011,-550.6813367,0.00013568,2]
[346843526,1735320633021,-599.81231256,0.00013568,2]
[346843528,1735320633031,-500.0,0.00013568,2]
[346843529,1735320633041,-500.0,0.00013568,2]
[346843531,1735320633051,-500.0,0.00013568,2]
[346843533,1735320633060,-500.0,0.00013568,2]
[346843535,1735320633070,-500.0,0.00013568,2]
[346843537,1735320633081,-500.0,0.00013568,2]
[346843539,1735320633091,-500.0,0.00013568,2]
[346843541,1735320633100,-500.0,0.00013568,2]
[346843543,1735320633111,-500.0,0.00013568,2]
[346843545,1735320633119,-500.0,0.00013568,2]
[346843547,1735320633128,-500.0,0.00013568,2]
[346843549,1735320633137,-500.0,0.00013568,2]
[346843551,1735320633147,-504.31654512,0.00013568,2]
[346843553,1735320633156,-500.0,0.00013568,2]
[346843555,1735320633166,-500.0,0.00013568,2]
[346843557,1735320633176,-500.0,0.00013568,2]
[346843559,1735320633185,-500.0,0.00013568,2]
[346843561,1735320633195,-500.0,0.00013568,2]
[346843563,1735320633204,-500.0,0.00013568,2]
[346843565,1735320633214,-500.0,0.00013568,2]
[346843567,1735320633223,-500.0,0.00013568,2]
[346843569,1735320633232,-500.0,0.00013568,2]
[346843571,1735320633242,-500.0,0.00013568,2]
[346843573,1735320633251,-500.0,0.00013568,2]
[346843575,1735320633261,-500.0,0.00013568,2]
[346843577,1735320633271,-500.0,0.00013568,2]
[346843579,1735320633281,-500.0,0.00013568,2]
[346843581,1735320633290,-500.0,0.00013568,2]
[346843583,1735320633300,-501.99339118,0.00013568,2]
[346843585,1735320633310,-500.0,0.00013568,2]
[346843587,1735320633319,-501.97013067,0.00013568,2]
[346843589,1735320633330,-500.0,0.00013568,2]
[346843591,1735320633340,-500.0,0.00013568,2]
[346843593,1735320633350,-500.0,0.00013568,2]
[346843595,1735320633360,-500.0,0.00013568,2]
[346843597,1735320633369,-435.99310408,0.00013569,2]
[346843599,1735320633379,-500.0,0.00013621,2]
[346843601,1735320633389,-500.0,0.00013735,2]
[346843603,1735320633399,-500.0,0.00013735,2]
[346843605,1735320633408,-500.0,0.00013735,2]
[346843607,1735320633418,-500.0,0.00013735,2]
[346843609,1735320633428,-500.0,0.00013735,2]
[346843611,1735320633438,-495.98464398,0.00013735,2]
[346843613,1735320633448,-500.0,0.00013735,2]
[346843615,1735320633458,-198.33,0.00013735,2]
[346843617,1735320633468,-500.0,0.00013736,2]
[346843619,1735320633477,-500.0,0.00013736,2]
[346843621,1735320633487,-500.0,0.00013736,2]
[346843623,1735320633496,-481.55197837,0.00013736,2]
[346843625,1735320633505,-500.0,0.00013737,2]
[346843627,1735320633515,-394.0,0.00013752,2]
[346843629,1735320633524,-163.38189799,0.000138,2]
[346843631,1735320633535,-190.59,0.00013842,2]
[346843633,1735320633544,-410.02828847,0.00013842,2]
[346843635,1735320633554,-500.0,0.00013842,2]
[346843637,1735320633563,-500.0,0.00013842,2]
[346843639,1735320633573,-500.0,0.00013842,2]
[346843641,1735320633585,-500.0,0.00013842,2]
[346843643,1735320633595,-500.0,0.00013842,2]
[346843645,1735320633604,-500.0,0.00013895,2]
[346843647,1735320633615,-5458.53853968,0.000139,2]
[346844128,1735320638490,-500.0,0.00013568,2]
[346844130,1735320638500,-500.0,0.00013568,2]
[346844132,1735320638510,-16404.88928539,0.000139,2]
[346844134,1735320638520,-400.0,0.00013973,2]
[346844136,1735320638530,-585.27,0.00014009,2]
[346844138,1735320638540,-500.0,0.00014009,2]
[346844140,1735320638550,-500.0,0.0001401,2]
[346844142,1735320638559,-500.0,0.0001401,2]
[346844144,1735320638569,-500.0,0.00014011,2]
[346844145,1735320638579,-269.45628545,0.00014114,2]
[346844146,1735320638590,-500.0,0.00014116,2]
[346844147,1735320638599,-500.0,0.00014116,2]
[346844148,1735320638610,-500.0,0.00014169,2]
[346844149,1735320638619,-292.84838373,0.00014194,2]
[346844150,1735320638629,-376.492054,0.00014208,2]
[346844152,1735320638638,-180.08298264,0.00014282,2]
[346844154,1735320638647,-500.0,0.00014282,2]
[346844156,1735320638657,-500.0,0.00014282,2]
[346844158,1735320638666,-500.0,0.00014282,2]
[346844160,1735320638676,-500.0,0.00014282,2]
[346844162,1735320638685,-500.0,0.00014282,2]
[346844164,1735320638695,-187.96986497,0.00014282,2]
[346844166,1735320638705,-561.20829707,0.00014282,2]
[346844168,1735320638714,-500.0,0.00014282,2]
[346844170,1735320638724,-500.0,0.00014282,2]
[346844172,1735320638733,-500.0,0.00014282,2]
[346844174,1735320638743,-500.0,0.00014283,2]
[346844176,1735320638752,-500.0,0.00014284,2]
[346844178,1735320638762,-500.0,0.00014284,2]
[346844180,1735320638771,-500.0,0.00014285,2]
[346844182,1735320638780,-500.0,0.0001439,2]
[346844184,1735320638789,-1200.0,0.00014523,2]
[346844186,1735320638799,-500.0,0.00014557,2]
[346844188,1735320638808,-500.0,0.00014558,2]
[346844190,1735320638818,-477.72,0.00014558,2]
[346844192,1735320638828,-420.41,0.00014559,2]
[346844194,1735320638839,-500.0,0.00014664,2]
[346844196,1735320638848,-500.0,0.00014831,2]
[346844198,1735320638857,-500.0,0.00014832,2]
[346844200,1735320638867,-565.07159973,0.000149,2]
[346844202,1735320638877,-500.0,0.00014938,2]
[346844204,1735320638888,-840.82021827,0.00015,2]
[346844206,1735320638898,-163.38189799,0.00015048,2]
[346844208,1735320638907,-500.0,0.00015105,2]
[346844210,1735320638917,-500.0,0.00015106,2]
[346844212,1735320638926,-500.0,0.00015212,2]
[346844214,1735320638937,-534.29036672,0.00015379,2]
[346844216,1735320638947,-500.0,0.0001538,2]
[346844218,1735320638956,-500.0,0.00015486,2]
[346844220,1735320638966,-500.0,0.00015653,2]
[346844222,1735320638976,-500.0,0.00015653,2]
[346844224,1735320638986,-500.0,0.00015653,2]
[346844226,1735320638995,-500.0,0.00015653,2]
[346844228,1735320639004,-500.0,0.00015653,2]
[346844230,1735320639014,-500.0,0.00015654,2]
[346844232,1735320639023,-500.0,0.0001576,2]
[346844234,1735320639033,-500.0,0.00015927,2]
[346844236,1735320639043,-500.0,0.00015928,2]
[346844238,1735320639052,-9280.49124056,0.00016,2]
[346844250,1735320639061,-51308.63298039,0.00016,2]
[346844252,1735320639173,-505.35528582,0.00016,2]
[346844255,1735320639185,-20262.90848624,0.00016,2]
[346844257,1735320639196,-2646.7546875,0.00016,2]
[346844259,1735320639207,-30483.51160122,0.00016,2]
[346844261,1735320639217,-500.0,0.00016034,2]
[346844263,1735320639226,-500.0,0.00016202,2]
[346844265,1735320639236,-163.38189799,0.00016295,2]
[346844267,1735320639246,-500.0,0.00016308,2]
[346844269,1735320639255,-500.0,0.00016438,2]
[346844271,1735320639264,-500.0,0.00016438,2]
[346844273,1735320639274,-500.0,0.00016438,2]
[346844275,1735320639284,-500.0,0.00016438,2]
[346844277,1735320639294,-500.0,0.00016438,2]
[346844279,1735320639304,-277.98255061,0.00016438,2]
[346844281,1735320639314,-500.0,0.00016438,2]
[346844283,1735320639323,-500.0,0.00016438,2]
[346844285,1735320639335,-165.57715325,0.00016438,2]
[346844288,1735320639345,-500.0,0.00016476,2]
[346844290,1735320639354,-281.532,0.00016513,2]
[346844291,1735320639364,-187.27555935,0.00016513,2]
[346844294,1735320639374,-500.0,0.00016582,2]
[346844296,1735320639383,-500.0,0.0001675,2]
[346844298,1735320639393,-500.0,0.00016856,2]
[346844300,1735320639403,-500.0,0.00017024,2]
[346844302,1735320639412,-500.0,0.0001713,2]
[346844304,1735320639422,-403.95,0.00017298,2]
[346844306,1735320639432,-311.95,0.000174,7]
[346844308,1735320639441,-500.0,0.00017404,2]
[346844310,1735320639450,-163.38189799,0.00017543,2]
[346844312,1735320639461,-2029.22511467,0.000176,2]
[346844314,1735320639471,-500.0,0.00017678,2]
[346844316,1735320639481,-500.0,0.00017808,4]
[346844318,1735320639491,-10310.54764679,0.0001782,2]
[346844320,1735320639501,-500.0,0.00017952,2]
[346844322,1735320639510,-2000.0,0.00018,2]
[346844324,1735320639521,-455.6576133,0.00018,2]
[346844326,1735320639531,-500.0,0.00018226,2]
[346844328,1735320639541,-500.0,0.000185,2]
[346844330,1735320639551,-500.0,0.00018774,2]
[346844332,1735320639561,-163.38189799,0.0001879,2]
[346844334,1735320639570,-4611.54452604,0.000189,2]
[346844336,1735320639580,-2000.0,0.00019,2]
[346844339,1735320639593,-302.57643837,0.00019,2]
[346844341,1735320639602,-500.0,0.00019048,2]
[346844343,1735320639612,-657.565,0.0001913,2]
[346844345,1735320639624,-500.0,0.00019178,6]
[346844347,1735320639634,-297.277307,0.00019178,2]
[346844349,1735320639644,-302.57643837,0.0001919,2]
[346844351,1735320639654,-3450.54959845,0.00019191,2]
[346844353,1735320639665,-359.28752532,0.00019322,2]
[346844355,1735320639675,-302.57643837,0.0001938,2]
[346844357,1735320639685,-302.57643837,0.0001957,2]
[346844359,1735320639694,-260.07685742,0.0001972,2]
[346844361,1735320639704,-40727.34645218,0.00019721,2]
[346844363,1735320639714,-302.57643837,0.0001976,2]
[346844365,1735320639724,-500.0,0.00019899,2]
[346844367,1735320639734,-367.1613313,0.00019942,2]
[346844369,1735320639743,-453.86465756,0.0001995,4]
[346844371,1735320639754,-817.0,0.0002,2]
[346844373,1735320639763,-1000.0,0.0002,20]
[346844375,1735320639773,-500.0,0.0002,2]
[346844377,1735320639783,-629.0,0.0002,2]
[346844378,1735320639792,-1495.41366017,0.0002,2]
[346844379,1735320639802,-163.38189799,0.00020038,2]
[346844380,1735320639811,-3708.98081294,0.000201,7]
[346844381,1735320639821,-6379.62743927,0.00020138,2]
[346844382,1735320639830,-174.6233445,0.00020138,2]
[346844384,1735320639847,-1057089.17058922,0.00020138,10]
[346844405,1735320640791,-500.86099914,0.00012266,2]
[346844406,1735320640802,-520.68,0.00013461,2]
[346844407,1735320640812,-26739.09726647,0.00020138,10]
[346844408,1735320640853,-9389.0,0.00020138,10]
[346844510,1735320644051,-500.0,0.00012266,2]
[346844512,1735320644061,-187100.0,0.00020138,10]
[346844514,1735320644072,-1709.1451065,0.00020138,10]
[346844588,1735320646557,-502.91239522,0.00012266,2]
[346844589,1735320646566,-500.0,0.00013461,2]
[346844591,1735320646576,-500.0,0.00013462,2]
[346844594,1735320646585,-500.0,0.00013568,2]
[346844596,1735320646596,-500.0,0.00014282,2]
[346844597,1735320646606,-500.0,0.00014282,2]
[346844599,1735320646614,-425.07932904,0.00014282,2]
[346844601,1735320646624,-158.55690373,0.00014282,2]
[346844603,1735320646634,-14252.17137201,0.00020138,10]
[346844612,1735320646726,-1200.0,0.00020138,2]
[346844613,1735320646736,-3153.25447809,0.00020138,10]
[346844614,1735320646749,-3655.28067087,0.00020138,10]
[346844847,1735321575123,-5570.0,0.00011484,2]
[346844848,1735321642147,-1500.61432016,0.00011369,2]
[346844849,1735321749113,-193.5938809,0.00011041,2]
[346844850,1735321749134,-193.5938809,0.00011153,2]
[346844851,1735321749155,-590.9361635,0.00011242,2]
[346844852,1735321749176,-99.15394004,0.00011369,2]
[346844853,1735321749200,-7169.7682602,0.000116,2]
[346844854,1735321749224,-250.0,0.00011902,2]
[346844855,1735321749245,-1142.64750978,0.00012042,2]
[346844856,1735321749267,-300.0,0.00012263,2]
[346844857,1735321749291,-500.0,0.00012264,2]
[346844858,1735321749317,-500.0,0.00012264,2]
[346844859,1735321749339,-500.0,0.00012264,2]
[346844860,1735321749361,-500.0,0.00012264,2]
[346844861,1735321749383,-503.96162591,0.00012264,2]
[346844862,1735321749404,-500.0,0.00012264,2]
[346844863,1735321749424,-500.0,0.00012264,2]
[346844864,1735321749449,-500.0,0.00012264,2]
[346844865,1735321749469,-500.0,0.00012264,2]
[346844866,1735321749490,-500.0,0.00012264,2]
[346844867,1735321749510,-207.15993544,0.00012264,2]
[346844868,1735321749530,-503.24752018,0.00012264,2]
[346844869,1735321749551,-500.0,0.00012264,2]
[346844870,1735321749572,-500.0,0.00012264,2]
[346844871,1735321749593,-500.0,0.00012264,2]
[346844872,1735321749614,-501.52216722,0.00012264,2]
[346844873,1735321749634,-503.83985086,0.00012264,2]
[346844874,1735321749654,-500.0,0.00012264,2]
[346844875,1735321749675,-500.0,0.00012264,2]
[346844876,1735321749699,-500.0,0.00012264,2]
[346844877,1735321749721,-502.07812151,0.00012264,2]
[346844878,1735321749742,-589.55573389,0.00012264,2]
[346844879,1735321749763,-501.83248865,0.00012264,2]
[346844880,1735321749786,-501.36137115,0.00012264,2]
[346844881,1735321749807,-501.83827515,0.00012264,2]
[346844882,1735321749827,-500.0,0.00012264,2]
[346844883,1735321749848,-503.49312441,0.00012264,2]
[346844884,1735321749870,-500.0,0.00012264,2]
[346844885,1735321749891,-504.41127704,0.00012264,2]
[346844886,1735321749911,-500.0,0.00012264,2]
[346844887,1735321749934,-500.0,0.00012264,2]
[346844888,1735321749956,-502.77938842,0.00012264,2]
[346844889,1735321749977,-500.0,0.00012264,2]
[346844890,1735321749999,-500.0,0.00012264,2]
[346844891,1735321750019,-500.0,0.00012264,2]
[346844892,1735321750040,-502.75623695,0.00012264,2]
[346844893,1735321750060,-500.0,0.00012264,2]
[346844894,1735321750081,-504.40340513,0.00012264,2]
[346844895,1735321750103,-500.0,0.00012264,2]
[346844896,1735321750124,-500.0,0.00012264,2]
[346844897,1735321750146,-500.0,0.00012264,2]
[346844898,1735321750168,-494.54908773,0.00012264,2]
[346844899,1735321750192,-500.0,0.00012264,2]
[346844900,1735321750217,-500.0,0.00012264,2]
[346844901,1735321750240,-500.0,0.00012264,2]
[346844902,1735321750363,-500.0,0.00012264,2]
[346844903,1735321750386,-500.0,0.00012264,2]
[346844904,1735321750406,-500.0,0.00012264,2]
[346844905,1735321750428,-500.0,0.00012265,2]
[346844906,1735321750451,-500.0,0.00012265,2]
[346844907,1735321750473,-500.0,0.00012265,2]
[346844908,1735321750494,-504.35375843,0.00012265,2]
[346844909,1735321750518,-500.0,0.00012265,2]
[346844910,1735321750541,-500.0,0.00012265,2]
[346844911,1735321750563,-500.0,0.00012265,2]
[346844912,1735321750586,-576.65516374,0.00012265,2]
[346844913,1735321750607,-500.0,0.00012265,2]
[346844914,1735321750629,-500.0,0.00012265,2]
[346844915,1735321750651,-354.21887389,0.00012265,2]
[346844916,1735321750674,-331.80973623,0.00012265,2]
[346844917,1735321750695,-300.0,0.00012265,2]
[346844918,1735321750718,-500.0,0.00012265,2]
[346844919,1735321750741,-500.0,0.00012265,2]
[346844920,1735321750763,-500.0,0.00012265,2]
[346844921,1735321750786,-500.0,0.00012265,2]
[346844922,1735321750807,-500.0,0.00012265,2]
[346844923,1735321750828,-500.0,0.00012265,2]
[346844924,1735321750849,-623.79130358,0.00012265,2]
[346844925,1735321750871,-500.0,0.00012265,2]
[346844926,1735321750892,-500.0,0.00012265,2]
[346844927,1735321750914,-500.0,0.00012265,2]
[346844928,1735321750937,-500.0,0.00012265,2]
[346844929,1735321750959,-376.05484492,0.00012265,2]
[346844930,1735321750979,-500.0,0.00012265,2]
[346844931,1735321751001,-500.0,0.00012265,2]
[346844932,1735321751023,-195.65621727,0.00012265,2]
[346844933,1735321751044,-500.0,0.00012265,2]
[346844934,1735321751065,-500.0,0.00012265,2]
[346844935,1735321751092,-500.0,0.00012265,2]
[346844936,1735321751114,-500.0,0.00012265,2]
[346844937,1735321751138,-500.0,0.00012265,2]
[346844938,1735321751158,-500.0,0.00012265,2]
[346844939,1735321751180,-245.47897264,0.00012265,2]
[346844940,1735321751201,-500.0,0.00012265,2]
[346844941,1735321751226,-500.0,0.00012265,2]
[346844942,1735321751248,-501.91,0.00012265,2]
[346844943,1735321751269,-500.0,0.00012265,2]
[346844944,1735321751290,-500.0,0.00012265,2]
[346844945,1735321751310,-500.0,0.00012265,2]
[346844946,1735321751334,-500.0,0.00012265,2]
[346844947,1735321751355,-501.34796684,0.00012265,2]
[346844948,1735321751375,-500.0,0.00012265,2]
[346844949,1735321751396,-500.0,0.00012265,2]
[346844950,1735321751415,-500.0,0.00012265,2]
[346844951,1735321751437,-500.0,0.00012265,2]
[346844952,1735321751457,-500.0,0.00012265,2]
[346844953,1735321751478,-500.0,0.00012265,2]
[346844954,1735321751500,-500.0,0.00012265,2]
[346844955,1735321751521,-500.0,0.00012265,2]
[346844956,1735321751541,-500.0,0.00012265,2]
[346844957,1735321751562,-500.0,0.00012265,2]
[346844958,1735321751583,-241.55418724,0.00012265,2]
[346844959,1735321751605,-500.0,0.00012265,2]
[346844960,1735321751627,-500.0,0.00012265,2]
[346844961,1735321751647,-500.0,0.00012265,2]
[346844962,1735321751668,-500.0,0.00012265,2]
[346844963,1735321751691,-500.0,0.00012265,2]
[346844964,1735321751712,-500.0,0.00012265,2]
[346844965,1735321751735,-509.90282238,0.00012265,2]
[346844966,1735321751756,-500.0,0.00012265,2]
[346844967,1735321751778,-500.0,0.00012265,2]
[346844968,1735321751802,-500.0,0.00012265,2]
[346844969,1735321751824,-500.0,0.00012265,2]
[346844970,1735321751846,-500.0,0.00012265,2]
[346844971,1735321751866,-500.0,0.00012265,2]
[346844972,1735321751887,-500.0,0.00012266,2]
[346844973,1735321751908,-500.0,0.00012266,2]
[346844974,1735321751928,-500.0,0.00012266,2]
[346844975,1735321751950,-501.14219141,0.00012266,2]
[346844976,1735321751971,-500.0,0.00012266,2]
[346844977,1735321751992,-500.0,0.00012266,2]
[346844978,1735321752012,-500.0,0.00012266,2]
[346844979,1735321752035,-500.0,0.00012266,2]
[346844980,1735321752056,-500.0,0.00012266,2]
[346844981,1735321752078,-500.0,0.00012266,2]
[346844982,1735321752101,-500.0,0.00012266,2]
[346844983,1735321752123,-502.13145983,0.00012266,2]
[346844984,1735321752144,-500.0,0.00012266,2]
[346844985,1735321752165,-501.68121836,0.00012266,2]
[346844986,1735321752187,-500.0,0.00012266,2]
[346844987,1735321752207,-502.86173747,0.00012266,2]
[346844988,1735321752232,-504.81629914,0.00012266,2]
[346844989,1735321752253,-500.0,0.00012266,2]
[346844990,1735321752274,-500.0,0.00012266,2]
[346844991,1735321752296,-500.0,0.00012266,2]
[346844992,1735321752317,-500.0,0.00012266,2]
[346844993,1735321752339,-573.66739059,0.00012266,2]
[346844994,1735321752360,-500.0,0.00012266,2]
[346844995,1735321752382,-500.0,0.00012266,2]
[346844996,1735321752402,-500.0,0.00012266,2]
[346844997,1735321752425,-500.0,0.00012266,2]
[346844998,1735321752448,-500.0,0.00012266,2]
[346844999,1735321752469,-446.48076508,0.00012266,2]
[346845000,1735321752635,-53.51923492,0.00012266,2]
[346845001,1735321752656,-500.0,0.00012266,2]
[346845002,1735321752677,-404.95498211,0.00012266,2]
[346845003,1735321752700,-500.0,0.00012266,2]
[346845004,1735321752721,-500.0,0.00012266,2]
[346845005,1735321752742,-499.0,0.00012266,2]
[346845006,1735321752763,-500.0,0.00012266,2]
[346845007,1735321752785,-500.0,0.00012266,2]
[346845008,1735321752805,-500.0,0.00012266,2]
[346845009,1735321752826,-500.0,0.00012266,2]
[346845010,1735321752848,-500.0,0.00012266,2]
[346845011,1735321752869,-500.0,0.00012266,2]
[346845012,1735321752889,-501.05565639,0.00012266,2]
[346845013,1735321752909,-500.0,0.00012266,2]
[346845014,1735321752930,-347.79723069,0.00012266,2]
[346845015,1735321752954,-500.0,0.00012266,2]
[346845016,1735321752973,-500.0,0.00012266,2]
[346845017,1735321752993,-512.02178123,0.00012266,2]
[346845018,1735321753014,-500.0,0.00012266,2]
[346845019,1735321753034,-500.0,0.00012266,2]
[346845020,1735321753054,-500.0,0.00012266,2]
[346845021,1735321753074,-500.0,0.00012266,2]
[346845022,1735321753095,-500.0,0.00012266,2]
[346845023,1735321753115,-506.12473125,0.00012266,2]
[346845024,1735321753138,-500.78778969,0.00012266,2]
[346845025,1735321753159,-500.0,0.00012266,2]
[346845026,1735321753179,-500.0,0.00012266,2]
[346845027,1735321753201,-500.0,0.00012266,2]
[346845028,1735321753225,-500.0,0.00012266,2]
[346845029,1735321753245,-334.14173577,0.00012266,2]
[346845030,1735321753268,-503.92841909,0.00012266,2]
[346845031,1735321753391,-500.0,0.00012266,2]
[346845032,1735321753415,-500.0,0.00012266,2]
[346845033,1735321753439,-500.0,0.00012266,2]
[346845034,1735321753460,-500.0,0.00012266,2]
[346845035,1735321753482,-500.0,0.00012266,2]
[346845036,1735321753504,-154.0502,0.00012266,2]
[346845037,1735321753526,-500.0,0.00012266,2]
[346845038,1735321753546,-500.0,0.00012266,2]
[346845039,1735321753567,-500.0,0.00012266,2]
[346845040,1735321753588,-500.0,0.00012266,2]
[346845041,1735321753608,-500.0,0.00012266,2]
[346845042,1735321753629,-500.0,0.00012266,2]
[346845043,1735321753650,-500.0,0.00012266,2]
[346845044,1735321753670,-500.0,0.00012266,2]
[346845045,1735321753691,-500.0,0.00012266,2]
[346845046,1735321753713,-500.0,0.00012266,2]
[346845047,1735321753734,-500.0,0.00012266,2]
[346845048,1735321753755,-500.0,0.00012266,2]
[346845049,1735321753775,-551.51793058,0.00012266,2]
[346845050,1735321753796,-500.0,0.00012266,2]
[346845051,1735321753817,-500.0,0.00012266,2]
[346845052,1735321753838,-500.0,0.00012266,2]
[346845053,1735321753860,-500.0,0.00012266,2]
[346845054,1735321753881,-500.0,0.00012266,2]
[346845055,1735321753901,-500.0,0.00012266,2]
[346845056,1735321753921,-500.0,0.00012266,2]
[346845057,1735321753942,-503.13911303,0.00012266,2]
[346845058,1735321753967,-500.0,0.00012266,2]
[346845059,1735321753987,-500.0,0.00012266,2]
[346845060,1735321754007,-500.0,0.00012266,2]
[346845061,1735321754027,-500.0,0.00012266,2]
[346845062,1735321754047,-584.90977943,0.00012266,2]
[346845063,1735321754067,-548.67433004,0.00012266,2]
[346845064,1735321754087,-506.3707603,0.00012266,2]
[346845065,1735321754108,-500.0,0.00012266,2]
[346845066,1735321754129,-500.0,0.00012266,2]
[346845067,1735321754151,-500.0,0.00012266,2]
[346845068,1735321754172,-500.0,0.00012266,2]
[346845069,1735321754193,-500.0,0.00012266,2]
[346845070,1735321754214,-500.0,0.00012266,2]
[346845071,1735321754237,-500.0,0.00012266,2]
[346845072,1735321754259,-500.0,0.00012266,2]
[346845073,1735321754279,-500.0,0.00012266,2]
[346845074,1735321754300,-500.0,0.00012266,2]
[346845075,1735321754321,-500.0,0.00012266,2]
[346845076,1735321754342,-500.0,0.00012266,2]
[346845077,1735321754362,-500.0,0.00012266,2]
[346845078,1735321754383,-500.0,0.00012538,2]
[346845079,1735321754413,-500.0,0.00012538,2]